Cogmind - Beta 10.2 @@@ ROGUE MODE // 2021.06.13 @ 11:18:37 Player: the cat Result: Destroyed by Y-45 Defender with Heavy Assault Rifle Performance ------------- Evolutions (1) 500 Regions Visited (3) 600 Robots Destroyed (57) 285 Value Destroyed (1249) 1249 Prototype IDs (4) 80 Alien Tech Used (0) 0 Bonus (0) 0 TOTAL SCORE: 2714 Bonus ------- None Cogmind --------- Core Integrity 0/400 Matter 182/300 Energy 132/280 System Corruption 7% Temperature Cool (97) Movement Treading (180) Ox1 Location -9/Storage Parts ------- > --- POWER (1) -------- Heavy Ion Engine > --- PROPULSION (3) --- Light Treads Light Treads Improved Treads > --- UTILITY (3) ------ High-capacity Storage Unit High-capacity Storage Unit Hardened Light Armor Plating > --- WEAPON (2) ------- Advanced Beam Cannon Heavy Assault Rifle > --- INVENTORY (20) --- Light Treads Cooling System Cooling System Medium Storage Unit Large Storage Unit Improved Sensor Array Improved Targeting Computer Improved Targeting Computer Light Armor Plating High-powered Tractor Beam Improved EM Shotgun Improved EM Shotgun Light EM Pulse Cannon Shotgun Rocket Launcher Rocket Launcher Peak State ------------ > --- POWER ------------ Heavy Ion Engine > --- PROPULSION ------- Light Treads Improved Treads Improved Treads > --- UTILITY ---------- High-capacity Storage Unit High-capacity Storage Unit Drone Bay > --- WEAPON ----------- Heavy Assault Rifle Shotgun > --- INVENTORY -------- Heavy Ion Engine Light Treads Light Treads Light Treads Cooling System Cooling System Medium Storage Unit Large Storage Unit Improved Sensor Array Improved Targeting Computer Improved Targeting Computer Light Armor Plating Hardened Light Armor Plating High-powered Tractor Beam Light EM Pulse Cannon Advanced Beam Cannon Heavy Assault Rifle Shotgun Rocket Launcher Rocket Launcher [Rating: 22] Favorites ----------- Power Ion Engine Engine Ion Engine Propulsion Improved Treads Treads Improved Treads Wheel Compact Wheel Utility High-capacity Storage Unit Device Drone Bay Storage High-capacity Storage Unit Protection Hardened Light Armor Plating Weapon Shotgun Energy Gun EM Pulse Gun Energy Cannon Advanced Beam Cannon Ballistic Gun Shotgun Build | -11 -10 -9 -9 ------- Run | Scr Mat Mat Sto Slots Evolved 2 | . . 2 . Power . | . . . . Propulsion 1 | . . 1 . Utility 1 | . . 1 . Weapon . | . . . . Parts Attached 44 | 6 7 13 18 Power 6 | 1 1 3 1 Engine 6 | 1 1 3 1 Core . | . . . . Reactor . | . . . . Propulsion 13 | 2 2 3 6 Treads 10 | 1 1 2 6 Leg . | . . . . Wheel 3 | 1 1 1 . Hover . | . . . . Flight . | . . . . Utility 8 | 1 2 2 3 Device 1 | . . . 1 Storage 4 | 1 2 1 . Processor . | . . . . Hackware . | . . . . Protection 3 | . . 1 2 Artifact . | . . . . Weapon 17 | 2 2 5 8 Energy Gun 2 | 1 . . 1 Energy Cannon 4 | . . 2 2 Ballistic Gun 11 | 1 2 3 5 Ballistic Cannon . | . . . . Launcher . | . . . . Special Weapon . | . . . . Impact Weapon . | . . . . Slashing Weapon . | . . . . Piercing Weapon . | . . . . Special Melee Weapon . | . . . . Unidentified Prototypes 4 | . . 3 1 Parts Lost 10 | . 3 3 4 Power 2 | . 1 . 1 Propulsion 2 | . . 1 1 Utility . | . . . . Weapon 6 | . 2 2 2 Highest Loss Streak 3 | . 3 1 2 Average Slot Usage (%) 98 | . 99 97 98 Engine 12 | . 13 11 11 Treads 20 | . 14 21 30 Wheel 10 | . 14 11 1 Storage 27 | . 27 30 23 Protection 2 | . . 1 6 Energy Gun 5 | . 13 . . Energy Cannon 1 | . . 3 . Ballistic Gun 17 | . 14 17 21 Naked Turns . | . . . . Heaviest Build 95 | 12 75 95 94 Greatest Support 66 | 20 23 23 66 Greatest Overweight (x) 5 | . 4 5 5 Average Overweight (x) 3 | . 3 4 1 Largest Inventory Capacity 26 | 6 20 26 26 Average Capacity 21 | 5 19 24 20 Most Carried 26 | 4 20 26 25 Average Carried 18 | 1 14 22 19 Final Capacity 26 | 6 20 26 20 Final Carried 25 | 4 17 25 16 Class Distribution -------------------- 97% | Hauler-Mutant Dominant Class ---------------- Hauler-Mutant | -10/Materials Hauler-Mutant | -9/Materials Hauler-Mutant | -9/Storage Resources | -11 -10 -9 -9 ----------- Run | Scr Mat Mat Sto Matter Collected 1187 | 221 156 403 407 Remotely . | . . . . Salvage Created 1738 | . 453 667 618 Parts 106 | . 30 47 29 Haulers Intercepted 6 | . 2 2 2 Recyclers Shooed 2 | . . 2 . Parts Field Recycled . | . . . . Retrieved Matter . | . . . . Parts Self-Destructed . | . . . . Prevented . | . . . . Kills | -11 -10 -9 -9 ------- Run | Scr Mat Mat Sto Combat Hostiles Destroyed 47 | . 11 19 17 Guns 42 | . 9 17 16 Cannons 3 | . . 2 1 AOE 2 | . 2 . . Classes Destroyed 6 | . 5 1 . Tunneler 1 | . 1 . . Hauler 6 | . 2 2 2 Operator 3 | . 1 1 1 Swarmer 22 | . 6 9 7 Grunt 16 | . 5 5 6 Sentry 9 | . . 5 4 Best Kill Streak 7 | . 3 5 7 Combat Bots Only 7 | . 3 5 7 Max Kills in Single Turn 2 | . 2 2 2 Gunslinging 1 | . . 1 . Exploded 2 | . 2 . . Melee . | . . . . Uniques/NPCs Destroyed . | . . . . Combat | -11 -10 -9 -9 -------- Run | Scr Mat Mat Sto Damage Taken 2302 | . 404 945 953 Core 450 | . 45 225 180 Absorbed by Shields . | . . . . Core Remaining (%) 91 | 100 82 . . Volleys Fired 130 | . 39 49 42 Largest 2 | . 2 2 2 Hottest 91 | . 63 91 91 Shots Fired 255 | . 78 96 81 Gun 236 | . 78 80 78 Cannon 19 | . . 16 3 Launcher . | . . . . Special . | . . . . Kinetic 199 | . 41 80 78 Thermal 19 | . . 16 3 Explosive . | . . . . Electromagnetic 37 | . 37 . . Robot Hit Streak 14 | . 14 13 14 Robot Miss Streak 6 | . 2 4 6 Penetration Max . | . . . . Secondary Targets 5 | . 2 2 1 Max Gunslinging Chain 1 | . 1 1 1 Shots Hit Robots 198 | . 56 77 65 Core Hits 92 | . 27 35 30 Critical Hits 1 | . . 1 . Critical Kills 1 | . . 1 . Critical Parts Destroyed . | . . . . Melee Attacks . | . . . . Impact . | . . . . Slashing . | . . . . Piercing . | . . . . Sneak Attacks . | . . . . Combat Hostiles . | . . . . Follow-up Attacks . | . . . . Damage Inflicted 2904 | . 797 1123 984 Guns 2406 | . 628 867 911 Cannons 317 | . . 256 61 Explosions 169 | . 169 . . Melee . | . . . . Ramming 12 | . . . 12 Kinetic 2041 | . 263 867 911 Thermal 486 | . 169 256 61 Explosive . | . . . . Electromagnetic 365 | . 365 . . Impact . | . . . . Slashing . | . . . . Piercing . | . . . . Highest Corruption 7 | . . 5 7 Average Corruption 5 | . . 5 6 Corruption Purged . | . . . . Effects 31 | . . 10 21 Message Errors 5 | . . 3 2 Matter Fused 8 | . . 2 6 Heat Flow Errors 4 | . . 1 3 Energy Discharges 1 | . . . 1 Parts Rejected 4 | . . 2 2 Targeting Errors 8 | . . 2 6 Weapon Failures 1 | . . . 1 Overload Shots . | . . . . Overflow Damage 16 | . 11 5 . Projectiles 5 | . . 5 . Explosions 11 | . 11 . . Melee . | . . . . Knockbacks . | . . . . Impact . | . . . . Kinetic . | . . . . Secondary . | . . . . Self-Inflicted Damage 50 | . 50 . . Shots 1 | . 1 . . Rammed 2 | . . . 2 Targets Rammed 2 | . . . 2 Kicked . | . . . . Crushed . | . . . . Highest Temperature 287 | . 64 144 287 Average Temperature 76 | . 22 45 151 Received Heat Transfer 522 | . 102 213 207 Siege Activations . | . . . . Robots Corrupted . | . . . . Combat Hostiles . | . . . . Parts Fried 4 | . 4 . . Impact Corruptions . | . . . . Robots Melted . | . . . . Combat Hostiles . | . . . . Parts Melted 1 | . . 1 . Heat Transferred 805 | . 250 444 111 Parts Sabotaged . | . . . . Parts Stolen . | . . . . Parts Stripped . | . . . . Power Chain Reactions 3 | . 3 . . Missiles Intercepted . | . . . . Alert | -11 -10 -9 -9 ------- Run | Scr Mat Mat Sto Peak Influence 394 | . 182 394 300 Initial 166 | . . 20 166 Average 161 | . 89 229 205 Maximum Alert Level 1 | . . 1 1 Low Security (%) 60 | 100 100 23 41 Level 1 39 | . . 76 58 Level 2 . | . . . . Level 3 . | . . . . Level 4 . | . . . . Level 5 . | . . . . High Security . | . . . . Max Security . | . . . . Squads Dispatched 7 | . 3 3 1 Investigation 2 | . 1 1 . Extermination . | . . . . Reinforcement 5 | . 2 2 1 Assault . | . . . . Garrison . | . . . . Intercept . | . . . . Construction Impeded . | . . . . Haulers Reinforced . | . . . . Stealth | -11 -10 -9 -9 --------- Run | Scr Mat Mat Sto Distress Signals 8 | . 1 3 4 Communications Jammed . | . . . . Distress Signals . | . . . . Times Spotted 70 | . 21 27 22 Peak Tracking Total 7 | . 4 7 6 Tactical Retreats 1 | . . . 1 Traps | -11 -10 -9 -9 ------- Run | Scr Mat Mat Sto Traps Triggered 4 | . 1 1 2 Indirectly . | . . . . Trap Hack Attempts . | . . . . Triggered . | . . . . Disarmed . | . . . . Reprogrammed . | . . . . Reused . | . . . . Traps Extracted . | . . . . Installed . | . . . . Triggered 1 | . . . 1 Machines | -11 -10 -9 -9 ---------- Run | Scr Mat Mat Sto Machines Disabled . | . . . . Max in Single Turn . | . . . . Machines Sabotaged . | . . . . Garrisons Compromised . | . . . . Overloaded Fab Kills . | . . . . Fab Network Shutdowns . | . . . . Hacking | -11 -10 -9 -9 --------- Run | Scr Mat Mat Sto Machines Accessed 12 | . 6 4 2 Terminals 10 | . 5 3 2 Fabricators . | . . . . Repair Stations . | . . . . Recycling Units 2 | . 1 1 . Scanalyzers . | . . . . Garrison Access . | . . . . Total Hacks 34 | . 20 10 4 Successful 19 | . 10 7 2 Failed 15 | . 10 3 2 Catastrophic 1 | . . 1 . Database Lockouts . | . . . . Manual 23 | . 13 9 1 Terminals 30 | . 18 8 4 Fabricators . | . . . . Repair Stations . | . . . . Recycling Units 4 | . 2 2 . Scanalyzers . | . . . . Garrison Access . | . . . . Terminal Hacks 6 | . 4 . 2 Robot Analysis 1 | . 1 . . Open Door 1 | . . . 1 Terminal Index 1 | . 1 . . Locate Traps 1 | . 1 . . Hauler Manifests 1 | . 1 . . Zone Layout 1 | . . . 1 Fabricator Hacks . | . . . . Repair Station Hacks . | . . . . Recycling Unit Hacks 2 | . 1 1 . Report Inventory 2 | . 1 1 . Scanalyzer . | . . . . Garrison Access Hacks . | . . . . Unauthorized Hacks 11 | . 5 6 . Terminals 9 | . 4 5 . Track 2 | . 1 1 . Botnet 3 | . 2 1 . Disrupt 2 | . . 2 . Operators 2 | . 1 1 . Fabricators . | . . . . Repair Stations . | . . . . Recycling Units 2 | . 1 1 . Recyclers 2 | . 1 1 . Scanalyzers . | . . . . Garrison Access . | . . . . Data Cores Recovered . | . . . . Used . | . . . . Hacking Detections 10 | . 6 3 1 Full Trace Events . | . . . . Feedback Events . | . . . . Feedback Blocked . | . . . . Robot Schematics Acquired . | . . . . Robots Built . | . . . . Matter . | . . . . Time . | . . . . Total Robot Build Rating . | . . . . Part Schematics Acquired . | . . . . Parts Built . | . . . . Matter . | . . . . Time . | . . . . Total Part Build Rating . | . . . . Parts Repaired . | . . . . Time . | . . . . Parts Recycled . | . . . . Recycled Matter . | . . . . Retrieved Matter . | . . . . Retrieved Components . | . . . . Parts Scanalyzed . | . . . . Part Schematics Acquired . | . . . . Parts Damaged . | . . . . Bothacking | -11 -10 -9 -9 ------------ Run | Scr Mat Mat Sto Used RIF Installer . | . . . . Robots Hacked . | . . . . Non-combat . | . . . . Combat . | . . . . Robot Hacks Applied . | . . . . Relay Couplers Released . | . . . . Robots Rewired . | . . . . Allies Hacked . | . . . . Hacks Repelled . | . . . . Allies | -11 -10 -9 -9 -------- Run | Scr Mat Mat Sto Total Allies . | . . . . Largest Group . | . . . . Highest-Rated Group . | . . . . Highest-Rated Ally . | . . . . Total Orders 2 | . . . 2 EXPLORE 2 | . . . 2 Ally Attacks . | . . . . Total Damage . | . . . . Kills . | . . . . Allies Corrupted . | . . . . Allies Melted . | . . . . Intel | -11 -10 -9 -9 ------- Run | Scr Mat Mat Sto Robot Analysis Total 1 | . 1 . . Derelict Logs Recovered . | . . . . Drone Launches 20 | . . . 20 Drone Recoveries 6 | . . . 6 Exploration | -11 -10 -9 -9 ------------- Run | Scr Mat Mat Sto Turns Passed 2181 | 54 892 755 480 Spaces Moved 974 | 41 501 311 121 Core 1 | 1 . . . Treads 231 | 2 29 102 98 Legs . | . . . . Wheels 742 | 38 472 209 23 Hover . | . . . . Flight . | . . . . Fastest Speed 50 | 50 100 140 150 Average Speed 156 | 101 144 175 174 Slowest Speed 240 | 160 220 240 240 Overloaded Moves . | . . . . Propulsion Burnouts . | . . . . Robots Hopped . | . . . . Cave-ins Triggered . | . . . . Exploration Rate (%) 44 | 3 82 35 58 Regions Visited 3 Branch Regions 1 Pre-discovered Areas . | . . . . Known Exits Taken . | . . . . Unknown Exits Taken 3 | 1 1 1 . Scrap Searched . | . . . . Spaces Dug . | . . . . Terrain Destroyed 12 | . 12 . . Melee . | . . . . Projectile . | . . . . AOE 12 | . 12 . . Terrain Rammed . | . . . . Walls Destroyed . | . . . . Machines Disabled . | . . . . Actions | -11 -10 -9 -9 --------- Run | Scr Mat Mat Sto Total 1387 | 50 605 426 306 Wait 151 | . 21 25 105 Move 971 | 40 500 310 121 Hop . | . . . . Pick Up 53 | 4 26 20 3 Fast Attach 14 | 6 1 2 5 Attach 21 | . 4 8 9 Detach . | . . . . Swap 9 | . 2 3 4 Drop 29 | . 12 9 8 Fire 130 | . 39 49 42 Melee . | . . . . Ram . | . . . . Kick . | . . . . Crush 2 | . . . 2 Escape Stasis . | . . . . Rewire . | . . . . Trap . | . . . . Miscellaneous 7 | . . . 7 Route ------- -11/Scrapyard -10/Materials (discovered 3 exits: *Mat x2 / [*Min]) -9/Materials (discovered 4 exits: [*Mat] / [*Min] / *Sto x2) -9/Storage History --------- Turn | Location | Event 19 | -11/Scrapyard | Discovered new exit (range 15) 55 | -11/Scrapyard | Entered Materials 323 | -10/Materials | Discovered new exit (range 11) 374 | -10/Materials | Build established: Hauler-Mutant 734 | -10/Materials | Discovered new exit (range 10) 810 | -10/Materials | Discovered new exit (range 11) 911 | -10/Materials | Lost 3 parts (1p2w) 947 | -10/Materials | Entered another Materials area 947 | -9/Materials | Evolved 2 slots: Propulsion x1, Utility x1 1232 | -9/Materials | Discovered new exit (range 15) 1280 | -9/Materials | Discovered new exit (range 15) 1532 | -9/Materials | Discovered new exit (range 15) 1606 | -9/Materials | Core integrity fell below 50% 1660 | -9/Materials | Discovered new exit (range 4) 1702 | -9/Materials | Entered Storage 1936 | -9/Storage | Core integrity fell below 20% 1957 | -9/Storage | Destroyed 7 combat bots 2182 | -9/Storage | Destroyed by Y-45 Defender with Heavy Assault Rifle Last Messages --------------- 02131_ Slammed into U-05 Engineer. 02134_ K-01 Serf collects debris. 02141_ S-10 Pest destroyed. 02144_ K-01 Serf collects debris. 02144_ S-10 Pest destroyed. 02145_ Acquired 17 matter. 02147_ K-01 Serf collects debris. 02148_ Acquired 9 matter. 02148_ R-06 Scavenger collects Lgt. Ion Engine. 02152_ Acquired 14 matter. 02153_ K-01 Serf collects debris. 02153_ Acquired 16 matter. 02156_ K-01 Serf collects debris. 02156_ W-16 Scout sends out distress signal. 02160_ System corrupted: Shotgun rejected. 02160_ K-01 Serf collects debris. 02166_ Identified Imp. EM Shotgun. 02174_ Imp. Treads destroyed. 02176_ Hvy. Ion Engine destroyed. 02180_ Y-45 Defender destroyed. Map ----- +----------------------------------------------------+ | ?????????????????????????????????????????????????? | | ?????????????????????????????????????????????????? | | ?????????????????????????????????????????????????? | | ?????????????????????????????????????????????????? | | ?????????????????????????????????????????????????? | | ????????????????????????????????????????????????## | | ????????????????????????????????????????????????#! | | ????????????????????????????????????????????????#% | | ????????????????????????????????????????????????#! | | ???????????????????????? #????????????????????## | | ??????????????????????? ##????????????????????## | | ??????????????????????# ##########?????????????? | | ??????????????????????# ##########????????###### | | ??????????????????????# #### ##????????# | | ??????????????????????+[ ##T# ##????????# | | ??????????????????????#%= # " ########### | | ??????????????????????# + ### # ## | | ??????????????????????# # " ### """"" # #? | | ??????????????????????# # # ### """"" # #? | | ??????????????????????# ########### """"" # ## | | ??????????????????????# ########### # # | | ??????????????????????# #?????????# + # | | ??????????????????????# #?????????# # # | | ??????????????????????# #?????????# "" # %# | | ??????????????????????# #?????????# "T + %+% | | ??????????????????????# @#?????????# "" ! # # | | ??????????????????????# ######????# # ## | | ??????????????????????# ##"""#????### ##### ## | | ??????????????????????#[ r##"R"#??????###??## ## | | ????????????#+###+##### ##" "############# ## | | ????????????# !!!!%!=[!! % | | ????????????+ = [ % ######=!!! | | ????????????# % *= [ #????#*#### %## | | ????????????### ###########"######?####+#####+### | | ??????????????????????# = #??# # | | ??????????????????????# """" #??# # | | ??????????????????????# " "" #??# # | | ??????????????????????#? " """ #??# # | | ???????????????????????? """ " #??# # | | ???????????????????????? "" " #?################ | | ??????????????????????????????????# #?????? | | ??????????????????????????????????# #?????? | | ??????????????????????????????????# ###???? | | ??????????????# ################! [ / #???? | | ??????????????# " / #?????? | | ?????????????????#+#####%########## / #?#???? | | ??????????????????????????????????# #?? """ | | ??????????????????????????????????# #??? | | ??????????????????????????????????# = #???? | | ??????????????????????????????????#####+########## | +----------------------------------------------------+ Best States ------------- Heat Dissipation 28 Energy Generation 14 Energy Capacity 280 Matter Stores 300 Matter Capacity 300 Sight Range 16 Terrain Scan Density 10 Armor Coverage 150 Evasion (%) 40 Recoil Reduction 3 Item Schematics ----------------- None Robot Schematics ------------------ None Fabricated ------------ Nothing Alien Tech Used ----------------- None Achievements -------------- None Challenges ------------ None Game ------ Seed FireThermalTreads Manual? 0 Play Time 00:26:11 Cumulative 111.1 hours Start 2021.06.13 @ 10:53:22 End 2021.06.13 @ 11:18:37 Sessions 1 Manual Loads 0 Difficulty Rogue Special Mode None Game No. 30 Rogue 13 Adventurer 17 Explorer 0 Win Type - Total 6 Types 5/0/0/1/0/0/0/0/0 Lore% 63 Gallery% 60 Achievement% 56 Wizard Run 0 Options --------- ASCII 0 Keyboard 0 Movement Arrows Keybinds 0 Fullscreen 1 Font 28/Dina Map View 72x54 Tactical HUD 1 Map Filters NONE Filters NONE Steam 1 RUN: 4d1bdd15-ac5c-4730-ad9f-660ab560e7d6